[Event "Titled Tuesday Blitz November 14 Late 2023"]
[White "Arifarsky"]
[Black "Fiorito, Francisco"]
[BlackFideId "180165"]
[WhiteElo "2752"]
[BlackElo "2618"]
[Result "0-1"]
[Round "10"]
[TimeControl "180+1"]
[Date "2023.11.14"]
[WhiteClock "0:00:04"]
[BlackClock "0:00:18"]
[Board "16"]

1. Nf3 {[%clk 0:03:00]}  Nf6 {[%clk 0:02:59]} 2. c4 {[%clk 0:03:00]}  b6 {[%clk 0:02:58]} 3. g3 {[%clk 0:03:00]}  Bb7 {[%clk 0:02:58]} 4. Bg2 {[%clk 0:03:01]}  g6 {[%clk 0:02:58]} 5. O-O {[%clk 0:03:01]}  Bg7 {[%clk 0:02:59]} 6. d4 {[%clk 0:03:01]}  O-O {[%clk 0:02:59]} 7. d5 {[%clk 0:02:55]}  Na6 {[%clk 0:02:59]} 8. Nc3 {[%clk 0:02:54]}  Nc5 {[%clk 0:03:00]} 9. Be3 {[%clk 0:02:50]}  a5 {[%clk 0:02:55]} 10. Rc1 {[%clk 0:02:49]}  e6 {[%clk 0:02:40]} 11. Bd4 {[%clk 0:02:38]}  d6 {[%clk 0:02:35]} 12. Bxc5 {[%clk 0:02:22]}  bxc5 {[%clk 0:02:34]} 13. e4 {[%clk 0:02:20]}  exd5 {[%clk 0:02:30]} 14. exd5 {[%clk 0:02:15]}  Re8 {[%clk 0:02:29]} 15. Re1 {[%clk 0:02:15]}  Qd7 {[%clk 0:02:29]} 16. Qb3 {[%clk 0:02:09]}  Ba6 {[%clk 0:02:27]} 17. Nd2 {[%clk 0:01:55]}  Ng4 {[%clk 0:02:18]} 18. Bh3 {[%clk 0:01:52]}  f5 {[%clk 0:02:06]} 19. Bxg4 {[%clk 0:01:47]}  fxg4 {[%clk 0:02:05]} 20. Qc2 {[%clk 0:01:36]}  Be5 {[%clk 0:01:57]} 21. b3 {[%clk 0:01:32]}  Rf8 {[%clk 0:01:56]} 22. a4 {[%clk 0:01:26]}  Qg7 {[%clk 0:01:51]} 23. Nb5 {[%clk 0:01:21]}  Bc8 {[%clk 0:01:49]} 24. Ne4 {[%clk 0:01:19]}  Bf5 {[%clk 0:01:48]} 25. Qd1 {[%clk 0:01:11]}  h6 {[%clk 0:01:47]} 26. Re3 {[%clk 0:01:05]}  Rf7 {[%clk 0:01:46]} 27. Rc2 {[%clk 0:01:00]}  Raf8 {[%clk 0:01:43]} 28. Rce2 {[%clk 0:01:01]}  g5 {[%clk 0:01:40]} 29. Qd2 {[%clk 0:00:59]}  Ra8 {[%clk 0:01:34]} 30. Nxc5 {[%clk 0:00:56]}  Bf4 {[%clk 0:00:53]} 31. gxf4 {[%clk 0:00:47]}  dxc5 {[%clk 0:00:48]} 32. fxg5 {[%clk 0:00:39]}  hxg5 {[%clk 0:00:46]} 33. Re5 {[%clk 0:00:39]}  Raf8 {[%clk 0:00:42]} 34. Qxa5 {[%clk 0:00:30]}  Bd3 {[%clk 0:00:39]} 35. Qd2 {[%clk 0:00:26]}  Bxe2 {[%clk 0:00:29]} 36. Rxg5 {[%clk 0:00:26]}  Bf3 {[%clk 0:00:29]} 37. Rxg7+ {[%clk 0:00:17]}  Rxg7 {[%clk 0:00:30]} 38. a5 {[%clk 0:00:13]}  Re8 {[%clk 0:00:24]} 39. a6 {[%clk 0:00:14]}  Rge7 {[%clk 0:00:24]} 40. Kf1 {[%clk 0:00:14]}  Rh7 {[%clk 0:00:19]} 41. Qg5+ {[%clk 0:00:13]}  Rg7 {[%clk 0:00:17]} 42. Qxg7+ {[%clk 0:00:12]}  Kxg7 {[%clk 0:00:17]} 43. Nxc7 {[%clk 0:00:13]}  Re2 {[%clk 0:00:17]} 44. a7 {[%clk 0:00:04]}  Rd2 {[%clk 0:00:18]} 0-1


[Site "https://www.chess.com"]

[Event "Titled Tuesday Blitz November 14 Late 2023"]
[White "Ibarra Jerez, Jose Carlos"]
[Black "Djokic, Mihailo"]
[WhiteFideId "2226332"]
[BlackFideId "976440"]
[WhiteElo "2942"]
[BlackElo "2688"]
[Result "1-0"]
[Round "10"]
[TimeControl "180+1"]
[Date "2023.11.14"]
[WhiteClock "0:02:43"]
[BlackClock "0:02:31"]
[Board "17"]

1. Nf3 {[%clk 0:02:58]}  Nf6 {[%clk 0:03:00]} 2. g3 {[%clk 0:02:58]}  g6 {[%clk 0:02:59]} 3. b3 {[%clk 0:02:59]}  Bg7 {[%clk 0:02:59]} 4. Bb2 {[%clk 0:02:59]}  O-O {[%clk 0:03:00]} 5. Bg2 {[%clk 0:03:00]}  d6 {[%clk 0:03:01]} 6. d4 {[%clk 0:03:00]}  e5 {[%clk 0:03:01]} 7. dxe5 {[%clk 0:03:00]}  Nfd7 {[%clk 0:03:02]} 8. Nc3 {[%clk 0:02:59]}  dxe5 {[%clk 0:03:02]} 9. Qd2 {[%clk 0:02:59]}  e4 {[%clk 0:03:01]} 10. Ng5 {[%clk 0:02:58]}  Re8 {[%clk 0:02:50]} 11. Ngxe4 {[%clk 0:02:51]}  Nc6 {[%clk 0:02:49]} 12. O-O-O {[%clk 0:02:51]}  Qe7 {[%clk 0:02:44]} 13. Nd5 {[%clk 0:02:45]}  Bxb2+ {[%clk 0:02:43]} 14. Kxb2 {[%clk 0:02:46]}  Qe5+ {[%clk 0:02:44]} 15. Qc3 {[%clk 0:02:45]}  Qxc3+ {[%clk 0:02:31]} 16. Kxc3 {[%clk 0:02:43]} 1-0


[Site "https://www.chess.com"]

[Event "Titled Tuesday Blitz November 14 Late 2023"]
[White "Yeletsky, Ivan"]
[Black "Hambleton, Aman"]
[WhiteFideId "24180327"]
[BlackFideId "2606577"]
[WhiteElo "2887"]
[BlackElo "2718"]
[Result "1-0"]
[Round "10"]
[TimeControl "180+1"]
[Date "2023.11.14"]
[WhiteClock "0:00:05"]
[BlackClock "0:00:02"]
[Board "18"]

1. d4 {[%clk 0:03:00]}  e5 {[%clk 0:02:59]} 2. dxe5 {[%clk 0:03:00]}  Nc6 {[%clk 0:02:59]} 3. Nf3 {[%clk 0:03:01]}  Qe7 {[%clk 0:02:59]} 4. Nc3 {[%clk 0:03:00]}  Nxe5 {[%clk 0:03:00]} 5. e4 {[%clk 0:03:00]}  Nf6 {[%clk 0:02:58]} 6. Be2 {[%clk 0:02:57]}  d6 {[%clk 0:02:58]} 7. O-O {[%clk 0:02:56]}  g6 {[%clk 0:02:58]} 8. Bg5 {[%clk 0:02:51]}  c6 {[%clk 0:02:58]} 9. Qd2 {[%clk 0:02:45]}  h6 {[%clk 0:02:53]} 10. Bh4 {[%clk 0:02:42]}  Nxf3+ {[%clk 0:02:29]} 11. Bxf3 {[%clk 0:02:42]}  g5 {[%clk 0:02:28]} 12. Bg3 {[%clk 0:02:41]}  Nd7 {[%clk 0:02:29]} 13. Rad1 {[%clk 0:02:37]}  Ne5 {[%clk 0:02:28]} 14. Bh5 {[%clk 0:02:37]}  Be6 {[%clk 0:02:23]} 15. Ne2 {[%clk 0:02:27]}  Bg7 {[%clk 0:02:01]} 16. b3 {[%clk 0:02:23]}  O-O-O {[%clk 0:02:00]} 17. Nd4 {[%clk 0:02:15]}  Kb8 {[%clk 0:01:50]} 18. f3 {[%clk 0:01:41]}  Bc8 {[%clk 0:01:18]} 19. a4 {[%clk 0:01:23]}  Ng6 {[%clk 0:01:02]} 20. Bxg6 {[%clk 0:01:05]}  fxg6 {[%clk 0:01:01]} 21. Bf2 {[%clk 0:01:02]}  g4 {[%clk 0:00:22]} 22. Rfe1 {[%clk 0:00:29]}  gxf3 {[%clk 0:00:21]} 23. Nxf3 {[%clk 0:00:29]}  g5 {[%clk 0:00:12]} 24. Qe3 {[%clk 0:00:25]}  c5 {[%clk 0:00:10]} 25. b4 {[%clk 0:00:23]}  Rhe8 {[%clk 0:00:03]} 26. bxc5 {[%clk 0:00:13]}  dxc5 {[%clk 0:00:04]} 27. h3 {[%clk 0:00:08]}  Rxd1 {[%clk 0:00:02]} 28. Rxd1 {[%clk 0:00:08]}  Bd7 {[%clk 0:00:01]} 29. a5 {[%clk 0:00:06]}  Bc6 {[%clk 0:00:01]} 30. e5 {[%clk 0:00:04]}  Qf8 {[%clk 0:00:01]} 31. Bg3 {[%clk 0:00:04]}  Ka8 {[%clk 0:00:01]} 32. Nd2 {[%clk 0:00:03]}  Qe7 {[%clk 0:00:01]} 33. Nc4 {[%clk 0:00:04]}  Bb5 {[%clk 0:00:01]} 34. Nd6 {[%clk 0:00:03]}  Rd8 {[%clk 0:00:02]} 35. Ra1 {[%clk 0:00:02]}  Bc6 {[%clk 0:00:02]} 36. Qxc5 {[%clk 0:00:03]}  Qe6 {[%clk 0:00:02]} 37. Bf2 {[%clk 0:00:04]}  b6 {[%clk 0:00:01]} 38. axb6 {[%clk 0:00:04]}  Bb7 {[%clk 0:00:01]} 39. Rxa7+ {[%clk 0:00:04]}  Kb8 {[%clk 0:00:02]} 40. Qc7# {[%clk 0:00:05]} 1-0


[Site "https://www.chess.com"]

[Event "Titled Tuesday Blitz November 14 Late 2023"]
[White "Omelja, Artem"]
[Black "Troff, Kayden"]
[WhiteFideId "14119846"]
[BlackFideId "2047896"]
[WhiteElo "2603"]
[BlackElo "2819"]
[Result "0-1"]
[Round "10"]
[TimeControl "180+1"]
[Date "2023.11.14"]
[WhiteClock "0:00:00"]
[BlackClock "0:00:07"]
[Board "20"]

1. e4 {[%clk 0:03:00]}  c5 {[%clk 0:02:58]} 2. Nf3 {[%clk 0:03:00]}  g6 {[%clk 0:02:59]} 3. d4 {[%clk 0:02:57]}  cxd4 {[%clk 0:02:59]} 4. Nxd4 {[%clk 0:02:58]}  Bg7 {[%clk 0:03:00]} 5. c4 {[%clk 0:02:57]}  Qb6 {[%clk 0:03:00]} 6. Nb5 {[%clk 0:02:52]}  Nf6 {[%clk 0:02:48]} 7. N1c3 {[%clk 0:02:49]}  a6 {[%clk 0:02:44]} 8. Be3 {[%clk 0:02:08]}  Qa5 {[%clk 0:02:41]} 9. b4 {[%clk 0:02:08]}  Qxb4 {[%clk 0:02:16]} 10. Nc7+ {[%clk 0:01:57]}  Kf8 {[%clk 0:02:12]} 11. Bd2 {[%clk 0:01:49]}  Ra7 {[%clk 0:01:35]} 12. N3d5 {[%clk 0:01:47]}  Qc5 {[%clk 0:01:30]} 13. Bb4 {[%clk 0:01:47]}  Qc6 {[%clk 0:01:24]} 14. Bxe7+ {[%clk 0:01:24]}  Kg8 {[%clk 0:01:23]} 15. Bxf6 {[%clk 0:01:05]}  Bxf6 {[%clk 0:01:19]} 16. Ne8 {[%clk 0:01:05]}  Bd8 {[%clk 0:00:54]} 17. Qd4 {[%clk 0:01:04]}  f6 {[%clk 0:00:54]} 18. Qxa7 {[%clk 0:00:38]}  Kf7 {[%clk 0:00:53]} 19. Qxb8 {[%clk 0:00:29]}  Ba5+ {[%clk 0:00:52]} 20. Ke2 {[%clk 0:00:26]}  Rxe8 {[%clk 0:00:52]} 21. Kf3 {[%clk 0:00:23]}  d6 {[%clk 0:00:50]} 22. Qa7 {[%clk 0:00:17]}  f5 {[%clk 0:00:27]} 23. Qd4 {[%clk 0:00:17]}  Re5 {[%clk 0:00:15]} 24. Bd3 {[%clk 0:00:12]}  Bd8 {[%clk 0:00:12]} 25. Ke2 {[%clk 0:00:09]}  fxe4 {[%clk 0:00:12]} 26. Bxe4 {[%clk 0:00:09]}  Bf5 {[%clk 0:00:12]} 27. f3 {[%clk 0:00:09]}  b5 {[%clk 0:00:11]} 28. Kf2 {[%clk 0:00:08]}  bxc4 {[%clk 0:00:10]} 29. Rac1 {[%clk 0:00:06]}  Be6 {[%clk 0:00:07]} 30. Rxc4 {[%clk 0:00:05]}  Qb5 {[%clk 0:00:07]} 31. Rhc1 {[%clk 0:00:05]}  Bxd5 {[%clk 0:00:07]} 32. Bxd5+ {[%clk 0:00:04]}  Rxd5 {[%clk 0:00:08]} 33. Qf4+ {[%clk 0:00:05]}  Rf5 {[%clk 0:00:09]} 34. Qd2 {[%clk 0:00:03]}  Bb6+ {[%clk 0:00:08]} 35. Kf1 {[%clk 0:00:03]}  d5 {[%clk 0:00:08]} 36. a4 {[%clk 0:00:02]}  Qd7 {[%clk 0:00:07]} 37. R4c2 {[%clk 0:00:02]}  Re5 {[%clk 0:00:05]} 38. Qd3 {[%clk 0:00:02]}  Be3 {[%clk 0:00:05]} 39. Re2 {[%clk 0:00:03]}  d4 {[%clk 0:00:05]} 40. Rcc2 {[%clk 0:00:02]}  Re7 {[%clk 0:00:05]} 41. Re1 {[%clk 0:00:03]}  Qd6 {[%clk 0:00:05]} 42. Qc4+ {[%clk 0:00:03]}  Kg7 {[%clk 0:00:05]} 43. Qd3 {[%clk 0:00:03]}  Qxh2 {[%clk 0:00:05]} 44. Ke2 {[%clk 0:00:04]}  Qxg2+ {[%clk 0:00:05]} 45. Kd1 {[%clk 0:00:05]}  Qxf3+ {[%clk 0:00:06]} 46. Qe2 {[%clk 0:00:04]}  Qd5 {[%clk 0:00:07]} 47. Qd3 {[%clk 0:00:04]}  Rb7 {[%clk 0:00:07]} 48. Ke2 {[%clk 0:00:00]}  Qg2+ {[%clk 0:00:07]} 0-1


[Site "https://www.chess.com"]

[Event "Titled Tuesday Blitz November 14 Late 2023"]
[White "Ghasi, Ameet K"]
[Black "Ozates, Tuna"]
[WhiteFideId "409200"]
[BlackFideId "6354521"]
[WhiteElo "2803"]
[BlackElo "2575"]
[Result "1-0"]
[Round "10"]
[TimeControl "180+1"]
[Date "2023.11.14"]
[WhiteClock "0:00:42"]
[BlackClock "0:00:01"]
[Board "21"]

1. g3 {[%clk 0:03:00]}  c5 {[%clk 0:02:59]} 2. Bg2 {[%clk 0:03:00]}  Nc6 {[%clk 0:03:00]} 3. d3 {[%clk 0:03:00]}  g6 {[%clk 0:03:00]} 4. a3 {[%clk 0:03:01]}  Bg7 {[%clk 0:03:00]} 5. h4 {[%clk 0:03:02]}  h5 {[%clk 0:02:57]} 6. Nh3 {[%clk 0:03:02]}  d6 {[%clk 0:02:57]} 7. Ng5 {[%clk 0:03:02]}  e5 {[%clk 0:02:56]} 8. c4 {[%clk 0:03:01]}  Nge7 {[%clk 0:02:56]} 9. Nc3 {[%clk 0:03:01]}  O-O {[%clk 0:02:56]} 10. Rb1 {[%clk 0:03:02]}  a5 {[%clk 0:02:56]} 11. Bd2 {[%clk 0:03:02]}  Rb8 {[%clk 0:02:47]} 12. O-O {[%clk 0:02:57]}  f6 {[%clk 0:02:42]} 13. Nge4 {[%clk 0:02:56]}  Be6 {[%clk 0:02:41]} 14. Nb5 {[%clk 0:02:56]}  Nf5 {[%clk 0:02:33]} 15. b4 {[%clk 0:02:56]}  cxb4 {[%clk 0:02:29]} 16. axb4 {[%clk 0:02:57]}  axb4 {[%clk 0:02:21]} 17. Rxb4 {[%clk 0:02:39]}  Nxb4 {[%clk 0:01:52]} 18. Bxb4 {[%clk 0:02:40]}  Rf7 {[%clk 0:01:51]} 19. Nbxd6 {[%clk 0:02:36]}  Nxd6 {[%clk 0:01:50]} 20. Nxd6 {[%clk 0:02:37]}  Rd7 {[%clk 0:01:50]} 21. Ne4 {[%clk 0:02:37]}  b6 {[%clk 0:01:45]} 22. Qa4 {[%clk 0:02:31]}  Kh7 {[%clk 0:01:33]} 23. Qc6 {[%clk 0:02:25]}  Bg4 {[%clk 0:01:25]} 24. Re1 {[%clk 0:02:18]}  Rc7 {[%clk 0:01:22]} 25. Qa4 {[%clk 0:02:10]}  Bd7 {[%clk 0:01:16]} 26. Qb3 {[%clk 0:02:08]}  Ra7 {[%clk 0:01:08]} 27. Nc3 {[%clk 0:02:04]}  Be6 {[%clk 0:01:02]} 28. Nb5 {[%clk 0:01:53]}  Rd7 {[%clk 0:00:58]} 29. Bc6 {[%clk 0:01:50]}  g5 {[%clk 0:00:50]} 30. hxg5 {[%clk 0:01:44]}  fxg5 {[%clk 0:00:50]} 31. Qc2 {[%clk 0:01:27]}  Rf7 {[%clk 0:00:46]} 32. d4+ {[%clk 0:01:24]}  Bf5 {[%clk 0:00:39]} 33. Be4 {[%clk 0:01:23]}  Bxe4 {[%clk 0:00:39]} 34. Qxe4+ {[%clk 0:01:23]}  Kg8 {[%clk 0:00:35]} 35. dxe5 {[%clk 0:01:23]}  Bf8 {[%clk 0:00:17]} 36. e6 {[%clk 0:01:21]}  Rg7 {[%clk 0:00:15]} 37. Bc3 {[%clk 0:01:20]}  Rbb7 {[%clk 0:00:11]} 38. Nd4 {[%clk 0:01:09]}  Bc5 {[%clk 0:00:07]} 39. Nf5 {[%clk 0:01:08]}  h4 {[%clk 0:00:06]} 40. Bxg7 {[%clk 0:00:53]}  Rxg7 {[%clk 0:00:04]} 41. Ra1 {[%clk 0:00:45]}  hxg3 {[%clk 0:00:04]} 42. Ra8 {[%clk 0:00:43]}  gxf2+ {[%clk 0:00:01]} 43. Kg2 {[%clk 0:00:42]} 1-0


[Site "https://www.chess.com"]

[Event "Titled Tuesday Blitz November 14 Late 2023"]
[White "Brodsky, David"]
[Black "Willy, Stephen"]
[WhiteFideId "2073250"]
[BlackFideId "30981468"]
[WhiteElo "2790"]
[BlackElo "2496"]
[Result "1-0"]
[Round "10"]
[TimeControl "180+1"]
[Date "2023.11.14"]
[WhiteClock "0:02:22"]
[BlackClock "0:01:25"]
[Board "23"]

1. d4 {[%clk 0:03:00]}  d5 {[%clk 0:02:55]} 2. Nf3 {[%clk 0:03:00]}  Nf6 {[%clk 0:02:52]} 3. c4 {[%clk 0:03:00]}  e6 {[%clk 0:02:52]} 4. Nc3 {[%clk 0:03:00]}  dxc4 {[%clk 0:02:52]} 5. e4 {[%clk 0:02:58]}  Bb4 {[%clk 0:02:52]} 6. Bxc4 {[%clk 0:02:56]}  Nxe4 {[%clk 0:02:50]} 7. O-O {[%clk 0:02:56]}  Nf6 {[%clk 0:02:45]} 8. Qa4+ {[%clk 0:02:55]}  Nc6 {[%clk 0:02:44]} 9. Ne5 {[%clk 0:02:55]}  Bxc3 {[%clk 0:02:08]} 10. Nxc6 {[%clk 0:02:34]}  Bd7 {[%clk 0:02:07]} 11. Nxd8 {[%clk 0:02:32]}  Bxa4 {[%clk 0:02:06]} 12. Nxe6 {[%clk 0:02:31]}  Ba5 {[%clk 0:01:56]} 13. Nxg7+ {[%clk 0:02:29]}  Kf8 {[%clk 0:01:52]} 14. Nf5 {[%clk 0:02:24]}  Ne8 {[%clk 0:01:25]} 15. Bh6+ {[%clk 0:02:22]} 1-0


[Site "https://www.chess.com"]

[Event "Titled Tuesday Blitz November 14 Late 2023"]
[White "Jamal-Jamal-Jamal"]
[Black "Djordjevic, Vuk"]
[BlackFideId "902098"]
[WhiteElo "2471"]
[BlackElo "2770"]
[Result "1-0"]
[Round "10"]
[TimeControl "180+1"]
[Date "2023.11.14"]
[WhiteClock "0:00:35"]
[BlackClock "0:00:00"]
[Board "25"]

1. e4 {[%clk 0:03:00]}  e6 {[%clk 0:02:59]} 2. d4 {[%clk 0:03:00]}  d5 {[%clk 0:02:59]} 3. Nd2 {[%clk 0:02:59]}  Be7 {[%clk 0:02:59]} 4. Ngf3 {[%clk 0:02:59]}  Nf6 {[%clk 0:02:59]} 5. e5 {[%clk 0:02:59]}  Nfd7 {[%clk 0:02:59]} 6. Bd3 {[%clk 0:02:59]}  c5 {[%clk 0:03:00]} 7. c3 {[%clk 0:03:00]}  b6 {[%clk 0:03:00]} 8. O-O {[%clk 0:02:58]}  Ba6 {[%clk 0:03:00]} 9. Ne1 {[%clk 0:02:58]}  Qc8 {[%clk 0:02:56]} 10. Qg4 {[%clk 0:02:57]}  g6 {[%clk 0:02:50]} 11. Ndf3 {[%clk 0:02:54]}  Nc6 {[%clk 0:02:47]} 12. h4 {[%clk 0:02:33]}  h5 {[%clk 0:02:46]} 13. Qg3 {[%clk 0:02:33]}  cxd4 {[%clk 0:02:39]} 14. cxd4 {[%clk 0:02:33]}  Nb4 {[%clk 0:02:39]} 15. Bxa6 {[%clk 0:02:32]}  Qxa6 {[%clk 0:02:40]} 16. Bg5 {[%clk 0:02:31]}  Nc6 {[%clk 0:02:23]} 17. Rc1 {[%clk 0:02:25]}  Rc8 {[%clk 0:02:23]} 18. a3 {[%clk 0:02:24]}  Qe2 {[%clk 0:02:08]} 19. Nc2 {[%clk 0:02:09]}  Qe4 {[%clk 0:01:54]} 20. Rfe1 {[%clk 0:02:04]}  Bxg5 {[%clk 0:01:22]} 21. Qxg5 {[%clk 0:01:25]}  Qd3 {[%clk 0:00:47]} 22. Nb4 {[%clk 0:01:21]}  Qb5 {[%clk 0:00:47]} 23. Nxc6 {[%clk 0:01:21]}  Rxc6 {[%clk 0:00:47]} 24. Rxc6 {[%clk 0:01:21]}  Qxc6 {[%clk 0:00:47]} 25. Rc1 {[%clk 0:01:22]}  Qb7 {[%clk 0:00:39]} 26. Ne1 {[%clk 0:01:18]}  O-O {[%clk 0:00:34]} 27. Nd3 {[%clk 0:01:14]}  Rc8 {[%clk 0:00:31]} 28. Kh2 {[%clk 0:01:08]}  Nf8 {[%clk 0:00:25]} 29. Qd2 {[%clk 0:01:04]}  Rc7 {[%clk 0:00:24]} 30. Rc3 {[%clk 0:01:03]}  Qc8 {[%clk 0:00:24]} 31. Rxc7 {[%clk 0:01:04]}  Qxc7 {[%clk 0:00:25]} 32. g3 {[%clk 0:01:04]}  Nd7 {[%clk 0:00:23]} 33. Nf4 {[%clk 0:01:04]}  Qc4 {[%clk 0:00:22]} 34. Nh3 {[%clk 0:01:03]}  Qb3 {[%clk 0:00:15]} 35. Ng5 {[%clk 0:00:47]}  f6 {[%clk 0:00:01]} 36. Nxe6 {[%clk 0:00:41]}  fxe5 {[%clk 0:00:01]} 37. Qg5 {[%clk 0:00:41]}  Kf7 {[%clk 0:00:01]} 38. Nd8+ {[%clk 0:00:39]}  Ke8 {[%clk 0:00:01]} 39. Nc6 {[%clk 0:00:37]}  Kf7 {[%clk 0:00:01]} 40. Qe7+ {[%clk 0:00:37]}  Kg8 {[%clk 0:00:01]} 41. Qxd7 {[%clk 0:00:36]}  Qxb2 {[%clk 0:00:02]} 42. Qxd5+ {[%clk 0:00:35]}  Kh7 {[%clk 0:00:02]} 43. Qf7+ {[%clk 0:00:35]}  Kh6 {[%clk 0:00:00]} 44. Nxe5 {[%clk 0:00:35]} 1-0


[Site "https://www.chess.com"]

[Event "Titled Tuesday Blitz November 14 Late 2023"]
[White "Schnaider, Ilan"]
[Black "Melikhov, Evgeny V."]
[WhiteFideId "169013"]
[BlackFideId "4122046"]
[WhiteElo "2724"]
[BlackElo "2433"]
[Result "1-0"]
[Round "10"]
[TimeControl "180+1"]
[Date "2023.11.14"]
[WhiteClock "0:01:29"]
[BlackClock "0:00:11"]
[Board "27"]

1. e4 {[%clk 0:03:00]}  e5 {[%clk 0:02:59]} 2. Nf3 {[%clk 0:03:01]}  Nc6 {[%clk 0:02:58]} 3. d4 {[%clk 0:02:57]}  exd4 {[%clk 0:02:57]} 4. Nxd4 {[%clk 0:02:57]}  Bc5 {[%clk 0:02:57]} 5. Nb3 {[%clk 0:02:58]}  Bb6 {[%clk 0:02:57]} 6. Nc3 {[%clk 0:02:58]}  Nf6 {[%clk 0:02:47]} 7. Bg5 {[%clk 0:02:58]}  h6 {[%clk 0:02:44]} 8. Bh4 {[%clk 0:02:53]}  d6 {[%clk 0:02:35]} 9. Bc4 {[%clk 0:02:46]}  Ne5 {[%clk 0:02:33]} 10. Be2 {[%clk 0:02:45]}  Ng6 {[%clk 0:02:32]} 11. Bg3 {[%clk 0:02:44]}  O-O {[%clk 0:02:25]} 12. Qd3 {[%clk 0:02:40]}  Re8 {[%clk 0:02:21]} 13. O-O {[%clk 0:02:40]}  Qe7 {[%clk 0:02:07]} 14. Bf3 {[%clk 0:02:38]}  Ne5 {[%clk 0:02:06]} 15. Bxe5 {[%clk 0:02:37]}  Qxe5 {[%clk 0:02:06]} 16. Nd2 {[%clk 0:02:36]}  Qd4 {[%clk 0:02:03]} 17. Qxd4 {[%clk 0:02:28]}  Bxd4 {[%clk 0:02:02]} 18. Nb5 {[%clk 0:02:29]}  Bb6 {[%clk 0:02:01]} 19. Nc4 {[%clk 0:02:29]}  Re7 {[%clk 0:01:48]} 20. a4 {[%clk 0:02:29]}  Be6 {[%clk 0:01:40]} 21. Nxb6 {[%clk 0:02:12]}  axb6 {[%clk 0:01:38]} 22. b3 {[%clk 0:02:12]}  Rd8 {[%clk 0:01:31]} 23. a5 {[%clk 0:02:09]}  bxa5 {[%clk 0:01:30]} 24. Rxa5 {[%clk 0:02:10]}  c6 {[%clk 0:01:25]} 25. Nd4 {[%clk 0:02:04]}  d5 {[%clk 0:01:24]} 26. exd5 {[%clk 0:01:57]}  Bxd5 {[%clk 0:01:23]} 27. Nf5 {[%clk 0:01:55]}  Re5 {[%clk 0:01:16]} 28. Ne3 {[%clk 0:01:55]}  b6 {[%clk 0:01:08]} 29. Ra6 {[%clk 0:01:55]}  Bxf3 {[%clk 0:01:07]} 30. gxf3 {[%clk 0:01:56]}  Rg5+ {[%clk 0:01:00]} 31. Kh1 {[%clk 0:01:56]}  Nd5 {[%clk 0:00:56]} 32. Nxd5 {[%clk 0:01:56]}  Rdxd5 {[%clk 0:00:48]} 33. Rxb6 {[%clk 0:01:57]}  Rc5 {[%clk 0:00:46]} 34. c4 {[%clk 0:01:56]}  Rcf5 {[%clk 0:00:46]} 35. Rxc6 {[%clk 0:01:54]}  Rxf3 {[%clk 0:00:46]} 36. b4 {[%clk 0:01:53]}  Rh5 {[%clk 0:00:37]} 37. Kg2 {[%clk 0:01:49]}  Rf4 {[%clk 0:00:32]} 38. b5 {[%clk 0:01:46]}  Rg5+ {[%clk 0:00:20]} 39. Kh1 {[%clk 0:01:46]}  Rh4 {[%clk 0:00:20]} 40. b6 {[%clk 0:01:42]}  Rgh5 {[%clk 0:00:20]} 41. b7 {[%clk 0:01:35]}  Rxh2+ {[%clk 0:00:19]} 42. Kg1 {[%clk 0:01:35]}  Rh1+ {[%clk 0:00:14]} 43. Kg2 {[%clk 0:01:36]}  R1h2+ {[%clk 0:00:14]} 44. Kf3 {[%clk 0:01:28]}  R2h3+ {[%clk 0:00:13]} 45. Ke2 {[%clk 0:01:29]}  Rb3 {[%clk 0:00:13]} 46. Rc8+ {[%clk 0:01:28]}  Kh7 {[%clk 0:00:11]} 47. b8=Q {[%clk 0:01:29]} 1-0


[Site "https://www.chess.com"]